bitfinex/quotes_BTCUSD_20251117
["timestamp","ask_amount","ask_price","bid_price","bid_amount"]
[1763391213303,0.03916183,95183.0,95167.0,0.04341874]
[1763391213513,0.03916183,95183.0,95182.0,0.10416178]
[1763391213728,0.03916183,95183.0,95168.0,0.00105076]
[1763391213951,0.00043755,95184.0,95137.0,0.10521289]
[1763391213952,0.03916183,95180.0,95137.0,0.10521289]
[1763391214150,0.02626629,95179.0,95152.0,0.10416178]
[1763391214377,3.03916183,95177.0,95137.0,0.10521289]
[1763391214491,3.03916183,95177.0,95153.0,0.10416178]
[1763391214697,3.03916183,95175.0,95153.0,0.10416178]
[1763391214909,0.03916183,95173.0,95153.0,0.10416178]
[1763391215148,0.03916183,95178.0,95172.0,0.0089838]
[1763391215362,0.03916183,95183.0,95177.0,0.00884599]
[1763391215580,0.03916183,95183.0,95173.0,0.09916178]
[1763391215791,0.03916183,95183.0,95173.0,0.09882178]
[1763391215995,3.03916183,95183.0,95182.0,0.00870818]
[1763391216230,3.03916183,95183.0,95137.0,0.10416178]
[1763391216231,3.03045365,95176.0,95137.0,0.10416178]
[1763391216454,0.03045365,95177.0,95137.0,0.10416178]
[1763391216666,0.03045365,95164.0,95133.0,0.00475008]
[1763391216864,0.03045365,95171.0,95133.0,0.00475008]
[1763391217066,0.03045365,95151.0,95133.0,0.00475008]
[1763391217318,3.03005365,95150.0,95133.0,0.00475008]
[1763391217523,3.03005365,95150.0,95110.0,0.0004]
[1763391217524,0.02330357,95128.0,95110.0,0.0004]
[1763391217783,0.05752357,95111.0,95110.0,0.0004]
[1763391217942,3.05752357,95111.0,95110.0,0.0004]
[1763391218149,0.04341874,95168.0,95110.0,0.0004]
[1763391218150,3.02330357,95122.0,95110.0,0.0004]
[1763391218351,0.02374059,95111.0,95110.0,0.0004]
[1763391218523,3.02374059,95111.0,95110.0,0.0004]
[1763391218740,3.07324059,95111.0,95110.0,0.0004]
[1763391218996,3.02374059,95111.0,95110.0,0.0004]
[1763391219212,0.02374059,95111.0,95110.0,0.0004]
[1763391219340,3.02374059,95111.0,95110.0,0.0004]
[1763391219542,0.02290357,95104.0,95079.0,0.10416178]
[1763391219749,0.02290357,95104.0,95050.0,0.11416177]
[1763391219750,0.04341874,95099.0,95011.0,0.002]
[1763391219948,0.08405635,95110.0,95022.0,0.09691]
[1763391219949,0.02290357,95077.0,95022.0,0.09691]
[1763391220177,3.02290357,95075.0,95022.0,0.09691]
[1763391220430,0.0262953,95074.0,95046.0,0.10416178]
[1763391220633,3.02290357,95073.0,95046.0,0.10416178]
[1763391220838,0.02290357,95071.0,95047.0,0.00105211]
[1763391221045,0.03967935,95070.0,95047.0,0.00105211]
[1763391221242,0.02290357,95069.0,95047.0,0.00105211]
[1763391221467,0.00043675,95071.0,95052.0,0.10416178]
[1763391221468,0.02290357,95067.0,95052.0,0.10416178]
[1763391221671,0.02629751,95066.0,95053.0,0.10416178]
[1763391221880,0.02290357,95065.0,95053.0,0.10416178]
[1763391222091,0.02290357,95070.0,95054.0,0.00105186]
[1763391222301,3.02290357,95063.0,95038.0,0.00105182]
[1763391222509,3.02290357,95063.0,95011.0,0.10182]
[1763391222510,0.02290357,95061.0,95032.0,0.10416178]
[1763391222735,0.02290357,95070.0,95033.0,0.04341874]
[1763391222948,0.02290357,95070.0,95069.0,0.00311534]
[1763391223587,0.02290357,95070.0,95055.0,0.04447076]
[1763391223794,0.02290357,95069.0,95035.0,0.04341874]
[1763391224008,0.02305875,95068.0,95049.0,0.10416178]
[1763391224285,3.02290357,95067.0,95049.0,0.10416178]
[1763391224497,3.02290357,95065.0,95024.0,0.09982]
[1763391224705,3.02290357,95063.0,95024.0,0.09982]
[1763391224911,0.02290357,95061.0,95051.0,0.10416178]
[1763391225119,3.07240357,95065.0,95024.0,0.09982]
[1763391225345,3.02290357,95056.0,95016.0,0.10416178]
[1763391225559,0.12162287,95055.0,95017.0,0.10416178]
[1763391225771,3.01790357,95054.0,95018.0,0.10416178]
[1763391225985,0.02290357,95050.0,95001.0,0.10416178]
[1763391226213,0.01605074,95049.0,95001.0,0.10416178]
[1763391226442,0.02290357,95041.0,95001.0,0.10416178]
[1763391226658,0.05388357,95012.0,95002.0,0.0010526]
[1763391226868,3.02290357,95039.0,95001.0,0.10416178]
[1763391227078,0.02290357,95032.0,95001.0,0.10416178]
[1763391227280,3.02630526,95038.0,95001.0,0.10416178]
[1763391227281,3.02290357,95030.0,95001.0,0.10416178]
[1763391227490,3.02290357,95028.0,95001.0,0.10416178]
[1763391227706,0.03098,95048.0,95001.0,0.10416178]
[1763391227707,0.00043622,95030.0,95016.0,0.10416178]
[1763391227957,0.02290357,95029.0,95017.0,0.04341874]
[1763391228177,0.02290357,95029.0,95001.0,0.10416178]
[1763391228386,0.02290357,95029.0,95018.0,0.10416178]
[1763391228591,0.02290357,95029.0,95019.0,0.00074459]
[1763391229241,0.0838062,95077.0,95020.0,0.04341874]
[1763391229445,3.0,95076.0,95061.0,0.00022145]
[1763391229658,3.0,95076.0,95038.0,0.02104421]
[1763391229868,3.0,95076.0,95039.0,0.02104399]
[1763391230074,0.10416178,95075.0,95037.0,0.07938323]
[1763391230314,0.10416178,95075.0,95019.0,0.01049064]
[1763391230315,3.0,95073.0,95019.0,0.01049064]
[1763391230578,3.0,95059.0,95022.0,0.10416178]
[1763391230787,3.0,95057.0,95019.0,0.00043622]
[1763391230994,3.04341874,95055.0,95019.0,0.00043622]
[1763391231202,3.03612589,95054.0,95019.0,0.00043622]
[1763391231415,3.0,95053.0,95021.0,0.10416178]
[1763391231615,3.0,95059.0,95022.0,0.02104775]
[1763391231832,3.0,95059.0,95021.0,0.10416178]
[1763391231833,3.0,95051.0,95019.0,0.00043622]
[1763391232039,3.0,95049.0,95023.0,0.10416178]
[1763391232250,0.02845272,95080.0,95025.0,0.04341874]
[1763391232251,3.0,95074.0,95025.0,0.04341874]
[1763391232462,0.01057912,95073.0,95027.0,0.04341874]
[1763391232672,3.0,95072.0,95028.0,0.01317149]
[1763391232880,3.0,95072.0,95019.0,0.10025622]
[1763391232881,3.0,95070.0,95021.0,0.04341874]
[1763391233104,3.0,95070.0,95048.0,0.10416178]
[1763391233105,0.11926554,95069.0,95048.0,0.10416178]
[1763391233311,0.11926554,95069.0,95022.0,0.04087792]
[1763391233312,3.0,95068.0,95028.0,0.04341874]
[1763391233523,3.0,95066.0,95049.0,0.10416178]
[1763391233729,0.01559616,95065.0,95049.0,0.10416178]
[1763391233938,3.0,95064.0,95027.0,0.10416178]
[1763391234117,3.0,95062.0,95011.0,0.002]
[1763391234410,3.0,95062.0,95027.0,0.00013208]
[1763391234411,0.04341874,95060.0,95027.0,0.00013208]
[1763391234627,3.0,95058.0,95002.0,0.10416178]
[1763391234834,0.01846408,95057.0,95017.0,0.10416178]
[1763391235044,3.0,95055.0,95018.0,0.12471042]
[1763391235257,3.0,95053.0,95018.0,0.12471042]
[1763391235464,0.01846408,95052.0,95033.0,0.10416178]
[1763391235687,0.00013089,95062.0,95033.0,0.10416178]
[1763391235688,0.00013089,95062.0,95034.0,0.11919509]
[1763391235899,0.00013089,95062.0,95035.0,0.01460099]
[1763391236114,3.10416178,95061.0,95020.0,0.04341874]
[1763391236291,3.0,95059.0,95052.0,0.00024819]
[1763391236529,3.0,95057.0,95052.0,0.00024819]
[1763391236750,0.01556566,95056.0,95020.0,0.09466293]
[1763391237000,3.00595237,95055.0,95033.0,0.10416178]
[1763391237210,3.00595237,95055.0,95009.0,0.04341874]
[1763391237211,3.0,95060.0,94934.0,0.21067085]
[1763391237417,0.10416178,95061.0,94928.0,9e-05]
[1763391237418,0.10416178,95045.0,95001.0,0.00011805]
[1763391237628,3.0,95043.0,95003.0,0.00874936]
[1763391237842,3.0,95041.0,95003.0,0.00874936]
[1763391238056,0.02354212,95040.0,95001.0,0.00011805]
[1763391238292,3.01935903,95039.0,95001.0,0.10427983]
[1763391238499,3.04566429,95038.0,95001.0,0.11513461]
[1763391238709,3.0,95036.0,95002.0,0.09815]
[1763391238925,3.0,95034.0,95003.0,0.01085455]
[1763391239135,3.0,95034.0,95001.0,0.00011805]
[1763391239136,0.02630665,95033.0,95001.0,0.00011805]
[1763391239342,3.01939952,95032.0,95001.0,0.00011805]
[1763391239579,3.0,95030.0,95001.0,0.00011805]
[1763391239786,3.0,95028.0,95001.0,0.00011805]
[1763391239985,0.02630831,95027.0,95001.0,0.00011805]
[1763391240192,3.0,95026.0,95001.0,0.00011805]
[1763391240407,3.0,95024.0,95001.0,0.00055427]
[1763391240614,0.04572853,95023.0,95001.0,0.00055427]
[1763391240829,0.04341874,95019.0,95001.0,0.00055427]
[1763391241059,0.1230885,95022.0,95001.0,4.27e-06]
[1763391241060,0.04341874,95011.0,95001.0,4.27e-06]
[1763391241274,3.0,95012.0,95000.0,24.29821307]
[1763391241275,0.25505137,95001.0,95000.0,24.29821307]
[1763391241480,0.28352083,95001.0,95000.0,19.96717456]
[1763391241736,0.33122686,95001.0,95000.0,19.08190769]
[1763391241953,0.35810508,95001.0,95000.0,18.78635068]
[1763391242162,3.36669785,95001.0,95000.0,18.63283371]
[1763391242398,3.1498577,95001.0,95000.0,18.53183371]
[1763391242652,3.12455227,95001.0,95000.0,18.53183371]
[1763391242868,3.05844789,95001.0,95000.0,18.53183371]
[1763391243097,3.08504186,95001.0,95000.0,18.53183371]
[1763391243335,3.1284606,95001.0,95000.0,18.53183371]
[1763391243548,3.07299674,95001.0,95000.0,18.53183371]
[1763391243753,3.1268656,95001.0,95000.0,18.53183371]
[1763391243965,3.029578,95001.0,95000.0,18.51183371]
[1763391244169,3.05490947,95001.0,95000.0,18.51183371]
[1763391244377,3.01985542,95001.0,95000.0,18.51183371]
[1763391244582,3.0004363,95001.0,95000.0,18.51183371]
[1763391244787,3.04839531,95001.0,95000.0,18.51183371]
[1763391245198,0.01985792,95001.0,95000.0,18.60998371]
[1763391245400,3.01985792,95001.0,95000.0,18.60998371]
[1763391245608,0.01985792,95001.0,95000.0,18.60998371]
[1763391246025,0.01987971,95001.0,95000.0,18.60998371]
[1763391246241,0.0004363,95001.0,95000.0,18.60998371]
[1763391246439,3.0,95049.0,95000.0,18.60998371]
[1763391246616,0.05550888,95048.0,95001.0,0.15373856]
[1763391246955,3.0,95046.0,95001.0,0.15373856]
[1763391247141,0.05417238,95045.0,95021.0,0.10416178]
[1763391247366,3.0,95043.0,95022.0,0.05558587]
[1763391247585,0.01831759,95061.0,95022.0,0.15373587]
[1763391247586,0.01947093,95042.0,95022.0,0.15373587]
[1763391247835,0.01949733,95041.0,95030.0,0.01999998]
[1763391248071,3.01277158,95088.0,95050.0,0.01999998]
[1763391248288,3.00974828,95087.0,95050.0,0.01999998]
[1763391248534,0.01051524,95100.0,95050.0,0.01999998]
[1763391248535,3.0,95085.0,95051.0,0.09815]
[1763391248730,3.0,95083.0,95051.0,0.09815]
[1763391248907,3.0,95081.0,95060.0,0.01999998]
[1763391249145,2.99101722,95079.0,95060.0,0.01999998]
[1763391249350,0.00013094,95083.0,95036.0,0.10416178]
[1763391249351,0.00013094,95083.0,95070.0,0.01999998]
[1763391249559,0.00976931,95082.0,95078.0,0.04776]
[1763391249769,0.00013094,95083.0,95078.0,0.04776]
[1763391249975,0.00013094,95083.0,95079.0,0.09815]
[1763391250192,0.00013094,95083.0,95082.0,0.10416178]
[1763391250393,3.0,95118.0,95110.0,0.00999999]
[1763391250594,3.0,95116.0,95100.0,0.01999998]
[1763391250799,0.0225382,95115.0,95100.0,0.01999998]
[1763391251009,3.0,95113.0,95090.0,0.00999999]
[1763391251225,3.0,95111.0,95091.0,0.10416178]
[1763391251448,0.00976662,95110.0,95100.0,0.00999999]
[1763391251645,0.00044107,95118.0,95100.0,0.00999999]
[1763391251646,0.00976662,95109.0,95101.0,0.01577054]
[1763391251854,3.0,95151.0,95130.0,0.00999999]
[1763391252064,3.0,95151.0,95140.0,0.00999999]
[1763391252065,3.0,95149.0,95140.0,0.00999999]
[1763391252287,3.0,95147.0,95140.0,0.00999999]
[1763391252485,3.0,95145.0,95130.0,0.00999999]
[1763391252696,0.02500332,95144.0,95130.0,0.00999999]
[1763391252908,3.01484962,95143.0,95131.0,0.20231178]
[1763391253113,0.00013232,95151.0,95131.0,0.20231178]
[1763391253114,3.0,95150.0,95140.0,0.00999999]
[1763391253321,3.0,95150.0,95142.0,0.04776]
[1763391253501,0.02500332,95149.0,95143.0,0.09815]
[1763391253746,0.00013232,95151.0,95143.0,0.09815]
[1763391254600,0.00013232,95151.0,95144.0,0.01802035]
[1763391255015,0.00013232,95151.0,95145.0,0.09815]
[1763391255439,0.00013232,95151.0,95147.0,0.10416178]
[1763391255645,0.00013232,95151.0,95148.0,0.01804739]
[1763391255848,0.21007342,95205.0,95149.0,0.15961594]
[1763391256052,0.01768186,95180.0,95150.0,0.00999999]
[1763391256257,0.0002,95210.0,95152.0,0.04341874]
[1763391256459,0.01793961,95187.0,95154.0,0.04341874]
[1763391256666,0.01934137,95186.0,95153.0,0.09734]
[1763391256878,0.02196899,95185.0,95155.0,0.10416178]
[1763391257088,0.02227799,95184.0,95156.0,0.0178632]
[1763391257296,0.02500332,95183.0,95157.0,0.09734]
[1763391257501,0.01793961,95187.0,95150.0,0.00999999]
[1763391257502,3.0,95158.0,95150.0,0.00999999]
[1763391257712,0.02500332,95157.0,95150.0,0.00999999]
[1763391257917,0.02500332,95157.0,95132.0,0.04781]
[1763391257918,3.0,95156.0,95140.0,0.00999999]
[1763391258124,3.0,95154.0,95140.0,0.00013232]
[1763391258333,0.01625043,95153.0,95140.0,0.00013232]
[1763391258540,3.0,95152.0,95140.0,0.00013232]
[1763391258753,0.21021308,95142.0,95140.0,0.00013232]
[1763391258963,3.0,95150.0,95140.0,0.00013232]
[1763391259173,0.02500332,95149.0,95140.0,0.00013232]
[1763391259371,0.02106056,95157.0,95140.0,0.00013232]
[1763391259503,0.020429,95159.0,95140.0,0.00013232]
[1763391259504,3.02500332,95156.0,95140.0,0.09747232]
[1763391259705,3.0,95154.0,95140.0,0.09747232]
[1763391259911,3.0,95152.0,95140.0,0.09747232]
[1763391260132,3.0,95150.0,95140.0,0.09747232]
[1763391260333,0.0236551,95149.0,95141.0,0.01577873]
[1763391260571,0.002,95159.0,95142.0,0.14758052]
[1763391260572,3.0,95156.0,95142.0,0.14758052]
[1763391260798,3.0,95158.0,95142.0,0.14758052]
[1763391260974,3.0,95158.0,95144.0,0.04341874]
[1763391261403,3.0,95158.0,95145.0,0.09734]
[1763391261755,0.02500332,95157.0,95145.0,0.09734]
[1763391261983,3.0,95156.0,95145.0,0.09734]
[1763391262213,3.0,95158.0,95146.0,0.12202655]
[1763391262390,0.0002,95210.0,95148.0,0.04341874]
[1763391262608,3.0,95197.0,95148.0,0.04341874]
[1763391262757,0.02500332,95196.0,95150.0,0.04341874]
[1763391262970,0.02500332,95196.0,95152.0,0.04341874]
[1763391262971,3.0,95196.0,95152.0,0.04341874]
[1763391263168,0.0002,95210.0,95149.0,0.09734]
[1763391263169,3.0,95198.0,95183.0,0.04341874]
[1763391263372,3.0,95198.0,95167.0,0.10416178]
[1763391263677,3.0,95196.0,95169.0,0.04341874]
[1763391263885,3.0,95194.0,95182.0,0.10416178]
[1763391264095,0.01783076,95210.0,95184.0,0.04341874]
[1763391264096,3.0,95198.0,95184.0,0.04341874]
[1763391264298,0.00013224,95198.0,95186.0,0.04341874]
[1763391264517,0.0002,95210.0,95197.0,0.10416178]
[1763391264725,0.0002,95210.0,95198.0,0.01685874]
[1763391264960,3.0002,95210.0,95209.0,0.0472]
[1763391265165,3.0002,95210.0,95209.0,0.10577]
[1763391265368,3.0,95209.0,95182.0,0.10416178]
[1763391265575,0.0002,95210.0,95182.0,0.10416178]
[1763391265576,3.0,95207.0,95183.0,0.09757]
[1763391265772,0.0002,95210.0,95183.0,0.09757]
[1763391265773,3.0,95205.0,95199.0,0.10416178]
[1763391265983,3.0002,95210.0,95209.0,0.0472]
[1763391266182,3.0,95209.0,95184.0,0.10416178]
[1763391266445,3.0,95207.0,95186.0,0.10416178]
[1763391266658,3.0,95205.0,95187.0,0.01680686]
[1763391266872,0.02500332,95204.0,95186.0,0.01680686]
[1763391267103,0.0002,95210.0,95204.0,0.0472]
[1763391267104,3.0,95209.0,95204.0,0.0472]
[1763391267313,0.0002,95210.0,95205.0,0.21958582]
[1763391267726,0.0002,95210.0,95207.0,0.04341874]
[1763391267925,0.0002,95210.0,95204.0,0.0472]
[1763391268136,0.0002,95210.0,95205.0,0.20173178]
[1763391268343,0.0002,95210.0,95204.0,0.0472]
[1763391270208,3.0,95209.0,95190.0,0.04341874]
[1763391270379,0.02500332,95208.0,95173.0,0.09757]
[1763391270590,3.0,95207.0,95170.0,0.0472]
[1763391270791,3.0,95205.0,95183.0,0.10416178]
[1763391271107,3.0,95203.0,95182.0,0.09770224]
[1763391271310,3.0,95201.0,95182.0,0.09770224]
[1763391271668,3.0,95199.0,95182.0,0.09770224]
[1763391271898,0.02500332,95198.0,95182.0,0.09770224]
[1763391272109,0.0002,95210.0,95183.0,0.1199187]
[1763391272326,0.0002,95210.0,95199.0,0.04341874]
[1763391272539,0.0002,95210.0,95200.0,0.01472697]
[1763391272743,0.0002,95210.0,95201.0,0.10416178]
[1763391272948,0.0002,95210.0,95202.0,0.05812215]
[1763391273158,3.0,95249.0,95204.0,0.04341874]
[1763391273363,0.01776912,95246.0,95226.0,0.0472]
[1763391273574,3.0,95244.0,95226.0,0.0472]
[1763391273773,0.02500332,95243.0,95226.0,0.0472]
[1763391273980,0.02500332,95243.0,95170.0,0.05719999]
[1763391273981,0.21000365,95237.0,95203.0,0.0472]
[1763391274225,0.01932226,95236.0,95203.0,0.0472]
[1763391274465,0.01049868,95250.0,95203.0,0.0472]
[1763391274466,3.0,95234.0,95203.0,0.0472]
[1763391274701,3.0,95232.0,95205.0,0.04341874]
[1763391274967,0.02500332,95231.0,95219.0,0.10416178]
[1763391275215,0.02500332,95231.0,95205.0,0.04341874]
[1763391275216,3.0,95230.0,95206.0,0.09757]
[1763391275480,0.0443933,95229.0,95207.0,0.04341874]
[1763391275780,0.01938998,95228.0,95207.0,0.01577963]
[1763391276018,3.0,95226.0,95203.0,0.0472]
[1763391276231,3.0,95224.0,95203.0,0.0472]
[1763391276464,3.0,95222.0,95205.0,0.10416178]
[1763391276685,0.02500332,95221.0,95206.0,0.0165094]
[1763391276904,0.00044091,95236.0,95207.0,0.01650923]
[1763391276905,3.0,95220.0,95207.0,0.01650923]
[1763391277136,3.0,95218.0,95207.0,0.01650923]
[1763391277395,0.01812361,95227.0,95203.0,0.0472]
[1763391277396,3.0,95216.0,95203.0,0.0472]
[1763391277644,3.0,95203.0,95193.0,0.0472]
[1763391277860,3.0,95201.0,95193.0,0.0472]
[1763391278081,3.0,95199.0,95180.0,0.01785873]
[1763391278309,0.04012297,95198.0,95182.0,0.10416178]
[1763391278521,3.01946873,95197.0,95183.0,0.01638523]
[1763391278734,3.0,95195.0,95184.0,0.01698224]
[1763391278955,0.04447205,95194.0,95183.0,0.00013224]
[1763391279176,0.01050089,95230.0,95184.0,0.20173178]
[1763391279177,0.01946873,95193.0,95184.0,0.20173178]
[1763391279389,0.01946873,95192.0,95185.0,0.01576415]
[1763391279623,0.01946873,95191.0,95185.0,0.11333415]
[1763391279844,0.01946873,95190.0,95185.0,0.11333415]
[1763391280063,0.01946873,95189.0,95187.0,0.09757]
[1763391280295,0.02249533,95228.0,95188.0,0.01577966]
[1763391280512,0.09529809,95263.0,95184.0,0.10416178]
[1763391280513,0.01791922,95216.0,95189.0,0.09757]
[1763391280733,3.0,95214.0,95183.0,0.00013224]
[1763391280970,0.01050199,95220.0,95183.0,0.00013224]
[1763391280971,0.04341874,95209.0,95183.0,0.00013224]
[1763391281228,3.0,95206.0,95183.0,0.00013224]
[1763391281450,3.0,95204.0,95183.0,0.00013224]
[1763391281657,0.21010053,95193.0,95183.0,0.00013224]
[1763391281858,3.0,95191.0,95183.0,0.00013224]
[1763391282063,0.0293329,95190.0,95183.0,0.00013224]
[1763391282262,0.0293329,95189.0,95184.0,0.09757]
[1763391282466,0.0293329,95188.0,95184.0,0.09757]
[1763391282940,0.0293329,95187.0,95184.0,0.09757]
[1763391283135,0.01864579,95199.0,95183.0,0.00013224]
[1763391283136,3.0,95185.0,95183.0,0.00013224]
[1763391283347,3.05433622,95184.0,95183.0,0.00013224]
[1763391283579,3.0293329,95184.0,95183.0,0.00013224]
[1763391285083,0.0105064,95180.0,95140.0,0.09757]
[1763391285283,0.21013259,95178.0,95140.0,0.09757]
[1763391285415,3.0,95172.0,95140.0,0.09757]
[1763391285614,3.0,95170.0,95140.0,0.09757]
[1763391285914,3.0,95168.0,95140.0,0.09757]
[1763391286146,3.0,95166.0,95122.0,0.09757]
[1763391286350,0.01050751,95170.0,95120.0,0.0472]
[1763391286351,3.0,95163.0,95120.0,0.0472]
[1763391286576,3.0,95144.0,95109.0,0.0472]
[1763391286727,3.04445,95132.0,95109.0,0.0472]
[1763391286925,3.09638477,95132.0,95109.0,0.0472]
[1763391287152,3.09638477,95132.0,95050.0,0.01039999]
[1763391287153,0.01051193,95130.0,95091.0,0.002]
[1763391287315,3.0,95128.0,95092.0,0.09757]
[1763391287525,3.0,95126.0,95092.0,0.09757]
[1763391287905,0.04445,95132.0,95092.0,0.00044107]
[1763391287906,3.0,95124.0,95092.0,0.00044107]
[1763391288082,3.0,95122.0,95092.0,0.00044107]
[1763391288286,0.01051193,95130.0,95092.0,0.00044107]
[1763391288287,3.0,95120.0,95092.0,0.00044107]
[1763391288487,0.03736337,95137.0,95092.0,0.00044107]
[1763391288488,3.0,95118.0,95092.0,0.00044107]
[1763391288697,3.0,95116.0,95092.0,0.00044107]
[1763391288910,0.0495,95129.0,95092.0,0.00044107]
[1763391288911,3.0,95114.0,95092.0,0.00044107]
[1763391289123,0.0293329,95113.0,95093.0,0.20173178]
[1763391289327,0.06265222,95132.0,95094.0,0.02103182]
[1763391289328,0.01955527,95112.0,95094.0,0.02103182]
[1763391289482,0.01955527,95111.0,95094.0,0.11150828]
[1763391289689,0.01955527,95110.0,95094.0,0.11150828]
[1763391289889,0.02254985,95142.0,95094.0,0.11150828]
[1763391289890,3.0,95141.0,95094.0,0.10991791]
[1763391290094,3.0,95139.0,95109.0,0.0472]
[1763391290365,3.0,95137.0,95094.0,0.09757]
[1763391290484,0.02565867,95136.0,95094.0,0.09757]
[1763391290686,3.0,95134.0,95094.0,0.09757]
[1763391290892,0.01051082,95140.0,95092.0,0.00044107]
[1763391290893,3.0,95129.0,95092.0,0.00044107]
[1763391291090,3.0,95119.0,95092.0,0.00044107]
[1763391291427,3.0,95106.0,95092.0,0.00044107]
[1763391291644,3.0,95104.0,95092.0,0.00044107]
[1763391291834,0.02565867,95103.0,95092.0,0.00044107]
[1763391292048,3.0,95101.0,95092.0,0.00044107]
[1763391292260,0.02565867,95100.0,95092.0,0.00044107]
[1763391292456,3.0,95128.0,95093.0,0.20173178]
[1763391292749,0.21017003,95162.0,95095.0,0.04341874]
[1763391292750,0.00976164,95127.0,95095.0,0.04341874]
[1763391292877,0.00976164,95126.0,95097.0,0.04341874]
[1763391293077,0.00976164,95126.0,95096.0,0.01301024]
[1763391293078,0.00976164,95125.0,95098.0,0.01279912]
[1763391293281,3.0,95133.0,95099.0,0.10416178]
[1763391293500,0.21015726,95167.0,95114.0,0.10416178]
[1763391293704,0.21016262,95165.0,95115.0,0.02102717]
[1763391293933,3.0,95154.0,95115.0,0.14477]
[1763391294140,3.0,95152.0,95115.0,0.0472]
[1763391294353,3.0,95149.0,95115.0,0.0472]
[1763391294554,2.83583136,95147.0,95116.0,0.10416178]
[1763391294799,3.0,95145.0,95116.0,0.19862178]
[1763391295009,3.0,95143.0,95116.0,0.19862178]
[1763391295215,3.0,95159.0,95117.0,0.09446]
[1763391295455,3.0,95159.0,95115.0,0.0472]
[1763391295456,3.0,95149.0,95115.0,0.0472]
[1763391295672,3.0,95147.0,95115.0,0.0472]
[1763391295870,2.974587,95115.0,95105.0,0.04797]
[1763391296008,2.974587,95113.0,95105.0,0.04797]
[1763391296229,0.01587629,95112.0,95107.0,0.10416178]
[1763391296430,3.0,95157.0,95108.0,0.0091688]
[1763391296638,0.01050751,95170.0,95109.0,0.12003606]
[1763391296639,3.0,95155.0,95109.0,0.12003606]
[1763391297003,3.0,95153.0,95110.0,0.11548828]
[1763391297215,3.0,95151.0,95110.0,0.09446]
[1763391297446,3.0,95149.0,95110.0,0.09446]
[1763391297660,3.0,95147.0,95111.0,0.10416178]
[1763391297873,3.0,95147.0,95111.0,0.12518984]
[1763391297874,0.02457756,95146.0,95111.0,0.12518984]
[1763391298092,3.00975082,95145.0,95111.0,0.19862178]
[1763391298305,3.0,95143.0,95112.0,0.09446]
[1763391298550,3.0,95141.0,95113.0,0.01635524]
[1763391298754,0.01076999,95140.0,95113.0,0.01076999]
[1763391298959,3.00975146,95139.0,95105.0,0.04797]
[1763391299172,3.0,95113.0,95092.0,0.04841107]
[1763391299376,0.01068563,95112.0,95092.0,0.04841107]
[1763391299490,3.0,95111.0,95093.0,0.10416178]
[1763391299697,3.0,95109.0,95093.0,0.19862178]
[1763391299931,0.01587629,95108.0,95093.0,0.19862178]
[1763391300151,0.21025573,95123.0,95092.0,0.04841107]
[1763391300389,3.0,95121.0,95094.0,0.10416178]
[1763391300593,0.01830184,95130.0,95094.0,0.10416178]
[1763391300594,3.0,95119.0,95095.0,0.11549159]
[1763391300794,0.2101635,95164.0,95109.0,0.10416178]
[1763391300993,3.0,95162.0,95110.0,0.02102828]
[1763391301266,3.0,95159.0,95110.0,0.09446]
[1763391301482,0.01805035,95164.0,95110.0,0.09446]
[1763391301483,0.02562962,95158.0,95111.0,0.04341874]
[1763391301649,0.01805035,95164.0,95113.0,0.04341874]
[1763391301650,3.0,95156.0,95113.0,0.04341874]
[1763391301898,0.02562962,95155.0,95113.0,0.04341874]
[1763391302043,0.02925743,95154.0,95114.0,0.15890613]
[1763391302274,0.02925743,95153.0,95115.0,0.01419749]
[1763391302455,3.0,95151.0,95117.0,0.09446]
[1763391302662,3.0,95149.0,95117.0,0.09446]
[1763391302822,3.0,95147.0,95117.0,0.09446]
[1763391303023,3.0,95145.0,95125.0,0.10416178]
[1763391303220,3.0,95143.0,95126.0,0.01314449]
[1763391303427,0.02925743,95142.0,95126.0,0.11548474]
[1763391303640,0.03736337,95184.0,95127.0,0.02102452]
[1763391303846,3.0,95182.0,95126.0,0.14243]
[1763391304073,0.01587629,95181.0,95161.0,0.10416178]
[1763391304287,0.01050199,95220.0,95162.0,0.09446]
[1763391304497,0.21007741,95203.0,95164.0,0.10416178]
[1763391304697,3.0,95203.0,95165.0,0.01562099]
[1763391304910,0.21009864,95194.0,95151.0,0.09446]
[1763391305114,3.0,95179.0,95136.0,0.09446]
[1763391305340,0.0105064,95180.0,95050.0,0.66457671]
[1763391305341,3.0,95159.0,95124.0,0.09446]
[1763391305542,0.01050861,95160.0,95124.0,0.09446]
[1763391305741,0.01050861,95160.0,95060.0,0.00999999]
[1763391305742,0.04341874,95158.0,95060.0,0.00999999]
[1763391305943,3.0,95147.0,95115.0,0.04797]
[1763391306167,0.21023172,95134.0,95115.0,0.00013212]
[1763391306402,0.04341874,95147.0,95115.0,0.00013212]
[1763391306639,3.02726,95116.0,95115.0,0.00013212]
[1763391307068,3.0,95113.0,95058.0,0.04797]
[1763391307278,0.07067874,95116.0,95051.0,0.002]
[1763391307279,0.04341874,95092.0,95091.0,0.00044107]
[1763391307506,3.04341874,95092.0,95051.0,0.002]
[1763391307726,0.21033148,95088.0,95051.0,0.00213232]
[1763391307936,3.0,95089.0,95052.0,0.19862178]
[1763391308138,3.0,95095.0,95053.0,0.01310474]
[1763391308341,0.04341874,95103.0,95051.0,0.00213232]
[1763391308541,0.04341874,95090.0,95051.0,0.00213232]
[1763391308741,0.04341874,95086.0,95051.0,0.00144883]
[1763391308946,0.04341874,95084.0,95051.0,0.00144883]
[1763391309164,0.04341874,95087.0,95051.0,0.00144883]
[1763391309368,0.01051635,95090.0,95051.0,0.00144883]
[1763391309369,0.04341874,95085.0,95051.0,0.00144883]
[1763391309577,3.03142,95052.0,95051.0,0.00144883]
[1763391309779,0.04341874,95048.0,95007.0,0.03846705]
[1763391309978,0.01052188,95040.0,95007.0,0.00013094]
[1763391310272,0.21046937,95026.0,95007.0,0.00013094]
[1763391310506,0.04341874,95036.0,95007.0,0.00013094]
[1763391310648,0.21051981,95003.0,95000.0,18.51157371]
[1763391310866,0.21052409,95001.0,95000.0,18.4433961]
[1763391311197,3.31696296,95001.0,95000.0,18.4433961]
[1763391311404,3.28067193,95001.0,95000.0,18.41804264]
[1763391311633,3.07014784,95001.0,95000.0,18.35649399]
[1763391311874,3.10767621,95001.0,95000.0,18.28613737]